[Event "Titled Tuesday Blitz August 31 2021"]
[White "Franca, Willian Bento"]
[Black "Krivonosov, Oleg"]
[WhiteFideId "2158850"]
[BlackFideId "11600349"]
[WhiteElo "2122"]
[BlackElo "2469"]
[Result "1/2-1/2"]
[Round "01"]
[TimeControl "180+1"]
[Date "2021.08.31"]
[WhiteClock "0:01:19"]
[BlackClock "0:01:19"]

1. c4 {[%clk 0:02:52]}  e6 {[%clk 0:02:59]} 2. g3 {[%clk 0:02:50]}  d5 {[%clk 0:02:58]} 3. Bg2 {[%clk 0:02:49]}  Nf6 {[%clk 0:02:58]} 4. Nf3 {[%clk 0:02:49]}  Be7 {[%clk 0:02:57]} 5. O-O {[%clk 0:02:49]}  O-O {[%clk 0:02:56]} 6. d4 {[%clk 0:02:49]}  Nbd7 {[%clk 0:02:55]} 7. Qc2 {[%clk 0:02:49]}  c6 {[%clk 0:02:54]} 8. b3 {[%clk 0:02:48]}  b6 {[%clk 0:02:52]} 9. Bb2 {[%clk 0:02:49]}  Bb7 {[%clk 0:02:49]} 10. Nc3 {[%clk 0:02:49]}  Ba6 {[%clk 0:02:47]} 11. Nd2 {[%clk 0:02:45]}  b5 {[%clk 0:02:45]} 12. e4 {[%clk 0:02:42]}  dxc4 {[%clk 0:02:42]} 13. bxc4 {[%clk 0:02:41]}  bxc4 {[%clk 0:02:42]} 14. Rfd1 {[%clk 0:02:25]}  h6 {[%clk 0:02:39]} 15. Na4 {[%clk 0:02:20]}  Nb6 {[%clk 0:02:35]} 16. Nxb6 {[%clk 0:02:19]}  axb6 {[%clk 0:02:35]} 17. Nxc4 {[%clk 0:02:18]}  Bxc4 {[%clk 0:02:34]} 18. Qxc4 {[%clk 0:02:17]}  Qd7 {[%clk 0:02:32]} 19. Rac1 {[%clk 0:02:16]}  Rfc8 {[%clk 0:02:30]} 20. h3 {[%clk 0:02:14]}  b5 {[%clk 0:02:28]} 21. Qb3 {[%clk 0:02:13]}  Qa7 {[%clk 0:02:25]} 22. d5 {[%clk 0:01:56]}  cxd5 {[%clk 0:02:18]} 23. Rxc8+ {[%clk 0:01:54]}  Rxc8 {[%clk 0:02:17]} 24. Bxf6 {[%clk 0:01:53]}  Bxf6 {[%clk 0:02:15]} 25. exd5 {[%clk 0:01:53]}  exd5 {[%clk 0:02:09]} 26. Qxb5 {[%clk 0:01:43]}  Qxa2 {[%clk 0:01:59]} 27. Bxd5 {[%clk 0:01:39]}  Qa7 {[%clk 0:01:58]} 28. Re1 {[%clk 0:01:32]}  Rf8 {[%clk 0:01:36]} 29. Re8 {[%clk 0:01:28]}  Qc7 {[%clk 0:01:27]} 30. Rxf8+ {[%clk 0:01:26]}  Kxf8 {[%clk 0:01:28]} 31. Qb7 {[%clk 0:01:23]}  Qxb7 {[%clk 0:01:26]} 32. Bxb7 {[%clk 0:01:22]}  Bd4 {[%clk 0:01:25]} 33. Kg2 {[%clk 0:01:21]}  f5 {[%clk 0:01:25]} 34. Bc8 {[%clk 0:01:19]}  g6 {[%clk 0:01:24]} 35. Bd7 {[%clk 0:01:18]}  Kg7 {[%clk 0:01:24]} 36. Ba4 {[%clk 0:01:19]}  Kf6 {[%clk 0:01:23]} 37. Bc2 {[%clk 0:01:19]}  g5 {[%clk 0:01:23]} 38. Kf3 {[%clk 0:01:19]}  h5 {[%clk 0:01:21]} 39. Bb1 {[%clk 0:01:18]}  g4+ {[%clk 0:01:19]} 40. hxg4 {[%clk 0:01:18]}  hxg4+ {[%clk 0:01:20]} 41. Kg2 {[%clk 0:01:18]}  Kg5 {[%clk 0:01:20]} 42. f3 {[%clk 0:01:18]}  f4 {[%clk 0:01:19]} 43. gxf4+ {[%clk 0:01:18]}  Kxf4 {[%clk 0:01:18]} 44. fxg4 {[%clk 0:01:19]}  Kxg4 {[%clk 0:01:19]} 1/2-1/2


[Site "https://www.chess.com"]

[Event "Titled Tuesday Blitz August 31 2021"]
[White "Gabdushev, Ruslan"]
[Black "Chigaev, Maksim"]
[WhiteFideId "4137833"]
[BlackFideId "4108116"]
[WhiteElo "2312"]
[BlackElo "2579"]
[Result "0-1"]
[Round "01"]
[TimeControl "180+1"]
[Date "2021.08.31"]
[WhiteClock "0:00:10"]
[BlackClock "0:00:30"]

1. c4 {[%clk 0:02:59]}  b6 {[%clk 0:02:58]} 2. Nc3 {[%clk 0:02:58]}  Bb7 {[%clk 0:02:59]} 3. e4 {[%clk 0:02:57]}  e5 {[%clk 0:02:59]} 4. g3 {[%clk 0:02:56]}  h5 {[%clk 0:02:58]} 5. h3 {[%clk 0:02:55]}  Bc5 {[%clk 0:02:58]} 6. Bg2 {[%clk 0:02:54]}  a5 {[%clk 0:02:58]} 7. d3 {[%clk 0:02:54]}  h4 {[%clk 0:02:57]} 8. g4 {[%clk 0:02:53]}  Ne7 {[%clk 0:02:57]} 9. Nge2 {[%clk 0:02:51]}  Ng6 {[%clk 0:02:57]} 10. f4 {[%clk 0:02:50]}  d6 {[%clk 0:02:50]} 11. f5 {[%clk 0:02:42]}  Nf8 {[%clk 0:02:50]} 12. Na4 {[%clk 0:02:26]}  Bb4+ {[%clk 0:02:50]} 13. Kf2 {[%clk 0:02:16]}  Nc6 {[%clk 0:02:42]} 14. a3 {[%clk 0:02:14]}  Bc5+ {[%clk 0:02:42]} 15. Nxc5 {[%clk 0:02:07]}  dxc5 {[%clk 0:02:43]} 16. Be3 {[%clk 0:02:05]}  Nh7 {[%clk 0:02:41]} 17. Qd2 {[%clk 0:02:02]}  f6 {[%clk 0:02:40]} 18. Bf3 {[%clk 0:01:56]}  Ng5 {[%clk 0:02:39]} 19. Kg2 {[%clk 0:01:55]}  Qe7 {[%clk 0:02:35]} 20. Nc3 {[%clk 0:01:50]}  Nd4 {[%clk 0:02:33]} 21. Bd1 {[%clk 0:01:45]}  c6 {[%clk 0:02:31]} 22. Rf1 {[%clk 0:01:29]}  Kf7 {[%clk 0:02:19]} 23. Ne2 {[%clk 0:01:19]}  a4 {[%clk 0:01:59]} 24. Nxd4 {[%clk 0:01:12]}  cxd4 {[%clk 0:01:54]} 25. Bxg5 {[%clk 0:01:07]}  fxg5 {[%clk 0:01:55]} 26. Qb4 {[%clk 0:01:06]}  Ra6 {[%clk 0:01:36]} 27. Bc2 {[%clk 0:01:01]}  Rha8 {[%clk 0:01:31]} 28. Qd2 {[%clk 0:01:00]}  Kf6 {[%clk 0:01:30]} 29. Rfb1 {[%clk 0:00:58]}  b5 {[%clk 0:01:27]} 30. cxb5 {[%clk 0:00:41]}  cxb5 {[%clk 0:01:28]} 31. Bd1 {[%clk 0:00:39]}  Rc8 {[%clk 0:01:19]} 32. Kf2 {[%clk 0:00:37]}  Rac6 {[%clk 0:01:16]} 33. Rc1 {[%clk 0:00:33]}  Qc7 {[%clk 0:01:14]} 34. Rcb1 {[%clk 0:00:31]}  Ba6 {[%clk 0:01:05]} 35. Ke2 {[%clk 0:00:25]}  Rc5 {[%clk 0:00:57]} 36. Kf2 {[%clk 0:00:19]}  Rf8 {[%clk 0:00:52]} 37. Be2 {[%clk 0:00:19]}  g6 {[%clk 0:00:49]} 38. Kg2 {[%clk 0:00:16]}  gxf5 {[%clk 0:00:48]} 39. gxf5 {[%clk 0:00:16]}  Rc2 {[%clk 0:00:47]} 40. Qd1 {[%clk 0:00:15]}  Rc8 {[%clk 0:00:45]} 41. Kf3 {[%clk 0:00:15]}  Bb7 {[%clk 0:00:41]} 42. Qg1 {[%clk 0:00:14]}  Rxe2 {[%clk 0:00:39]} 43. Kxe2 {[%clk 0:00:14]}  Qc2+ {[%clk 0:00:40]} 44. Ke1 {[%clk 0:00:14]}  Qxd3 {[%clk 0:00:40]} 45. Rc1 {[%clk 0:00:12]}  Qxe4+ {[%clk 0:00:39]} 46. Kd1 {[%clk 0:00:13]}  Qd3+ {[%clk 0:00:34]} 47. Ke1 {[%clk 0:00:13]}  Rc4 {[%clk 0:00:30]} 48. Rxc4 {[%clk 0:00:11]}  bxc4 {[%clk 0:00:31]} 49. Qg4 {[%clk 0:00:10]}  Bf3 {[%clk 0:00:30]} 0-1


[Site "https://www.chess.com"]

[Event "Titled Tuesday Blitz August 31 2021"]
[White "Gallegos Diaz, Carlos Alberto"]
[Black "Karthikeyan, Murali"]
[WhiteFideId "3900886"]
[BlackFideId "5074452"]
[WhiteElo "2362"]
[BlackElo "2564"]
[Result "0-1"]
[Round "01"]
[TimeControl "180+1"]
[Date "2021.08.31"]
[WhiteClock "0:00:05"]
[BlackClock "0:00:12"]

1. e4 {[%clk 0:02:58]}  c5 {[%clk 0:02:52]} 2. Nf3 {[%clk 0:02:57]}  Nc6 {[%clk 0:02:49]} 3. Bb5 {[%clk 0:02:57]}  d6 {[%clk 0:02:33]} 4. O-O {[%clk 0:02:55]}  Bd7 {[%clk 0:02:26]} 5. Re1 {[%clk 0:02:53]}  Nf6 {[%clk 0:02:26]} 6. d3 {[%clk 0:02:30]}  g6 {[%clk 0:02:20]} 7. c3 {[%clk 0:02:18]}  Bg7 {[%clk 0:02:15]} 8. h3 {[%clk 0:02:17]}  a6 {[%clk 0:02:13]} 9. Ba4 {[%clk 0:02:13]}  b5 {[%clk 0:01:35]} 10. Bc2 {[%clk 0:02:06]}  O-O {[%clk 0:01:35]} 11. Nbd2 {[%clk 0:02:05]}  e5 {[%clk 0:01:34]} 12. a3 {[%clk 0:01:51]}  Re8 {[%clk 0:01:31]} 13. Nf1 {[%clk 0:01:45]}  d5 {[%clk 0:01:31]} 14. exd5 {[%clk 0:01:39]}  Nxd5 {[%clk 0:01:29]} 15. Ng3 {[%clk 0:01:29]}  h6 {[%clk 0:01:18]} 16. Ne4 {[%clk 0:01:26]}  Qe7 {[%clk 0:01:18]} 17. Bb3 {[%clk 0:01:23]}  Be6 {[%clk 0:01:18]} 18. Bxd5 {[%clk 0:00:39]}  Bxd5 {[%clk 0:01:18]} 19. b4 {[%clk 0:00:37]}  c4 {[%clk 0:01:14]} 20. dxc4 {[%clk 0:00:31]}  Bxc4 {[%clk 0:01:15]} 21. Qd6 {[%clk 0:00:28]}  Qe6 {[%clk 0:01:07]} 22. Qxe6 {[%clk 0:00:27]}  Rxe6 {[%clk 0:01:08]} 23. Be3 {[%clk 0:00:27]}  f5 {[%clk 0:01:04]} 24. Nc5 {[%clk 0:00:27]}  Re7 {[%clk 0:01:04]} 25. Rad1 {[%clk 0:00:26]}  e4 {[%clk 0:00:27]} 26. Nd4 {[%clk 0:00:24]}  Ne5 {[%clk 0:00:28]} 27. Bf4 {[%clk 0:00:21]}  a5 {[%clk 0:00:22]} 28. Bxe5 {[%clk 0:00:21]}  Rxe5 {[%clk 0:00:23]} 29. Nc6 {[%clk 0:00:21]}  Ree8 {[%clk 0:00:23]} 30. Rd6 {[%clk 0:00:19]}  Kh7 {[%clk 0:00:23]} 31. Rc1 {[%clk 0:00:18]}  axb4 {[%clk 0:00:22]} 32. axb4 {[%clk 0:00:18]}  Rac8 {[%clk 0:00:19]} 33. Nd4 {[%clk 0:00:18]}  Red8 {[%clk 0:00:19]} 34. Rxd8 {[%clk 0:00:17]}  Rxd8 {[%clk 0:00:20]} 35. Nce6 {[%clk 0:00:17]}  Ra8 {[%clk 0:00:14]} 36. Nxg7 {[%clk 0:00:16]}  Kxg7 {[%clk 0:00:15]} 37. Re1 {[%clk 0:00:14]}  Ra3 {[%clk 0:00:15]} 38. f3 {[%clk 0:00:15]}  exf3 {[%clk 0:00:14]} 39. Nxf3 {[%clk 0:00:16]}  Rxc3 {[%clk 0:00:14]} 40. Re7+ {[%clk 0:00:16]}  Kf6 {[%clk 0:00:14]} 41. Rb7 {[%clk 0:00:17]}  Re3 {[%clk 0:00:05]} 42. Rb6+ {[%clk 0:00:18]}  Re6 {[%clk 0:00:05]} 43. Rb7 {[%clk 0:00:17]}  Rd6 {[%clk 0:00:06]} 44. Rb8 {[%clk 0:00:15]}  g5 {[%clk 0:00:06]} 45. h4 {[%clk 0:00:14]}  g4 {[%clk 0:00:05]} 46. Ne1 {[%clk 0:00:14]}  Rd1 {[%clk 0:00:05]} 47. Kf2 {[%clk 0:00:11]}  g3+ {[%clk 0:00:05]} 48. Kxg3 {[%clk 0:00:12]}  Rxe1 {[%clk 0:00:05]} 49. Rb6+ {[%clk 0:00:12]}  Re6 {[%clk 0:00:05]} 50. Rb8 {[%clk 0:00:12]}  Re3+ {[%clk 0:00:06]} 51. Kf4 {[%clk 0:00:10]}  Re4+ {[%clk 0:00:06]} 52. Kg3 {[%clk 0:00:09]}  Rg4+ {[%clk 0:00:07]} 53. Kf2 {[%clk 0:00:08]}  h5 {[%clk 0:00:08]} 54. g3 {[%clk 0:00:08]}  f4 {[%clk 0:00:09]} 55. Rf8+ {[%clk 0:00:07]}  Bf7 {[%clk 0:00:09]} 56. gxf4 {[%clk 0:00:06]}  Rxf4+ {[%clk 0:00:10]} 57. Kg3 {[%clk 0:00:06]}  Rxb4 {[%clk 0:00:11]} 58. Rb8 {[%clk 0:00:05]}  Rb3+ {[%clk 0:00:12]} 0-1


[Site "https://www.chess.com"]

[Event "Titled Tuesday Blitz August 31 2021"]
[White "Grachev, Boris"]
[Black "Chjumachenko, Andrey"]
[WhiteFideId "4129199"]
[BlackFideId "4119975"]
[WhiteElo "2580"]
[BlackElo "2424"]
[Result "1-0"]
[Round "01"]
[TimeControl "180+1"]
[Date "2021.08.31"]
[WhiteClock "0:02:02"]
[BlackClock "0:00:09"]

1. d4 {[%clk 0:02:59]}  Nf6 {[%clk 0:02:59]} 2. Bf4 {[%clk 0:02:58]}  d6 {[%clk 0:01:37]} 3. e3 {[%clk 0:02:56]}  Nbd7 {[%clk 0:01:35]} 4. Nf3 {[%clk 0:02:55]}  g6 {[%clk 0:01:33]} 5. h3 {[%clk 0:02:54]}  Bg7 {[%clk 0:01:34]} 6. Bh2 {[%clk 0:02:54]}  O-O {[%clk 0:01:34]} 7. Be2 {[%clk 0:02:55]}  Re8 {[%clk 0:01:33]} 8. O-O {[%clk 0:02:56]}  e5 {[%clk 0:01:33]} 9. c4 {[%clk 0:02:57]}  c6 {[%clk 0:01:27]} 10. Nc3 {[%clk 0:02:57]}  e4 {[%clk 0:01:15]} 11. Nd2 {[%clk 0:02:56]}  d5 {[%clk 0:01:15]} 12. cxd5 {[%clk 0:02:57]}  cxd5 {[%clk 0:01:09]} 13. Nb5 {[%clk 0:02:57]}  Nf8 {[%clk 0:00:59]} 14. Nc7 {[%clk 0:02:56]}  Bd7 {[%clk 0:00:56]} 15. Rc1 {[%clk 0:02:54]}  Rc8 {[%clk 0:00:54]} 16. Nxe8 {[%clk 0:02:53]}  Nxe8 {[%clk 0:00:54]} 17. Rxc8 {[%clk 0:02:52]}  Qxc8 {[%clk 0:00:53]} 18. Qc1 {[%clk 0:02:50]}  Bc6 {[%clk 0:00:52]} 19. Qc5 {[%clk 0:02:43]}  b6 {[%clk 0:00:48]} 20. Qc3 {[%clk 0:02:28]}  Qb7 {[%clk 0:00:46]} 21. Rc1 {[%clk 0:02:27]}  Bd7 {[%clk 0:00:45]} 22. Qa3 {[%clk 0:02:25]}  Ne6 {[%clk 0:00:42]} 23. Ba6 {[%clk 0:02:23]}  Qa8 {[%clk 0:00:36]} 24. Qe7 {[%clk 0:02:20]}  Nf6 {[%clk 0:00:36]} 25. Be5 {[%clk 0:02:18]}  Qd8 {[%clk 0:00:22]} 26. Qxd8+ {[%clk 0:02:13]}  Nxd8 {[%clk 0:00:21]} 27. Rc7 {[%clk 0:02:13]}  Be6 {[%clk 0:00:13]} 28. Rxa7 {[%clk 0:02:09]}  Nd7 {[%clk 0:00:09]} 29. Ra8 {[%clk 0:02:02]} 1-0


[Site "https://www.chess.com"]

[Event "Titled Tuesday Blitz August 31 2021"]
[White "Guliev, Logman"]
[Black "Gabrielian, Artur"]
[WhiteFideId "13400061"]
[BlackFideId "4131002"]
[WhiteElo "2128"]
[BlackElo "2513"]
[Result "1-0"]
[Round "01"]
[TimeControl "180+1"]
[Date "2021.08.31"]
[WhiteClock "0:01:21"]
[BlackClock "0:01:35"]

1. e4 {[%clk 0:03:00]}  e5 {[%clk 0:02:57]} 2. Nf3 {[%clk 0:03:00]}  Nc6 {[%clk 0:02:57]} 3. Bb5 {[%clk 0:03:00]}  Nf6 {[%clk 0:02:55]} 4. d3 {[%clk 0:02:59]}  Bc5 {[%clk 0:02:55]} 5. O-O {[%clk 0:02:54]}  O-O {[%clk 0:02:54]} 6. Bxc6 {[%clk 0:02:52]}  dxc6 {[%clk 0:02:54]} 7. Nxe5 {[%clk 0:02:51]}  Re8 {[%clk 0:02:53]} 8. Nc4 {[%clk 0:02:49]}  Bg4 {[%clk 0:02:48]} 9. Qe1 {[%clk 0:02:40]}  Qd7 {[%clk 0:02:43]} 10. Be3 {[%clk 0:02:38]}  Bf8 {[%clk 0:02:42]} 11. Bg5 {[%clk 0:02:35]}  Nd5 {[%clk 0:02:38]} 12. Ne3 {[%clk 0:02:32]}  Nxe3 {[%clk 0:02:35]} 13. Bxe3 {[%clk 0:02:31]}  f5 {[%clk 0:02:35]} 14. f3 {[%clk 0:02:26]}  Bh5 {[%clk 0:02:34]} 15. Nc3 {[%clk 0:02:25]}  Rad8 {[%clk 0:02:28]} 16. Qh4 {[%clk 0:02:22]}  Bf7 {[%clk 0:02:27]} 17. Bg5 {[%clk 0:02:21]}  Rc8 {[%clk 0:02:24]} 18. Rae1 {[%clk 0:02:22]}  h6 {[%clk 0:02:18]} 19. Be3 {[%clk 0:02:16]}  b6 {[%clk 0:02:18]} 20. exf5 {[%clk 0:02:14]}  Qxf5 {[%clk 0:02:18]} 21. Ne4 {[%clk 0:02:11]}  c5 {[%clk 0:02:14]} 22. b3 {[%clk 0:02:01]}  a5 {[%clk 0:02:11]} 23. a4 {[%clk 0:01:58]}  Rcd8 {[%clk 0:02:11]} 24. Bd2 {[%clk 0:01:50]}  Re6 {[%clk 0:02:06]} 25. Ng3 {[%clk 0:01:44]}  Qd5 {[%clk 0:02:05]} 26. Rxe6 {[%clk 0:01:39]}  Bxe6 {[%clk 0:02:05]} 27. Bc3 {[%clk 0:01:38]}  Re8 {[%clk 0:02:02]} 28. Re1 {[%clk 0:01:35]}  Bf7 {[%clk 0:01:59]} 29. Rxe8 {[%clk 0:01:32]}  Bxe8 {[%clk 0:01:59]} 30. Qe4 {[%clk 0:01:31]}  Qd7 {[%clk 0:01:55]} 31. Nf5 {[%clk 0:01:28]}  Bf7 {[%clk 0:01:35]} 32. Qg4 {[%clk 0:01:24]}  g6 {[%clk 0:01:35]} 33. Nxh6+ {[%clk 0:01:21]} 1-0


[Site "https://www.chess.com"]

[Event "Titled Tuesday Blitz August 31 2021"]
[White "Gunina, Valentina"]
[Black "Jaskolka, Tomasz"]
[WhiteFideId "4167570"]
[BlackFideId "1170791"]
[WhiteElo "2399"]
[BlackElo "2050"]
[Result "1-0"]
[Round "01"]
[TimeControl "180+1"]
[Date "2021.08.31"]
[WhiteClock "0:01:12"]
[BlackClock "0:00:16"]

1. d4 {[%clk 0:03:00]}  Nf6 {[%clk 0:02:57]} 2. c4 {[%clk 0:03:00]}  g6 {[%clk 0:02:54]} 3. Nc3 {[%clk 0:02:59]}  d5 {[%clk 0:02:54]} 4. cxd5 {[%clk 0:02:57]}  Nxd5 {[%clk 0:02:54]} 5. e4 {[%clk 0:02:57]}  Nxc3 {[%clk 0:02:54]} 6. bxc3 {[%clk 0:02:58]}  Bg7 {[%clk 0:02:54]} 7. Nf3 {[%clk 0:02:58]}  c5 {[%clk 0:02:54]} 8. Be2 {[%clk 0:02:58]}  O-O {[%clk 0:02:52]} 9. O-O {[%clk 0:02:58]}  Nc6 {[%clk 0:02:51]} 10. Be3 {[%clk 0:02:57]}  Qa5 {[%clk 0:02:41]} 11. d5 {[%clk 0:02:51]}  Ne5 {[%clk 0:02:37]} 12. Nd2 {[%clk 0:02:46]}  Qxc3 {[%clk 0:01:41]} 13. Rc1 {[%clk 0:02:44]}  Qa3 {[%clk 0:01:40]} 14. Bxc5 {[%clk 0:02:40]}  Qxa2 {[%clk 0:01:39]} 15. f4 {[%clk 0:02:32]}  Nd7 {[%clk 0:01:30]} 16. Bxe7 {[%clk 0:02:31]}  Re8 {[%clk 0:01:29]} 17. d6 {[%clk 0:02:30]}  Qa3 {[%clk 0:00:44]} 18. Rf3 {[%clk 0:02:10]}  Qb4 {[%clk 0:00:40]} 19. Nc4 {[%clk 0:01:48]}  Rxe7 {[%clk 0:00:38]} 20. dxe7 {[%clk 0:01:47]}  Qxe7 {[%clk 0:00:39]} 21. e5 {[%clk 0:01:45]}  Nf8 {[%clk 0:00:26]} 22. Nd6 {[%clk 0:01:41]}  Bg4 {[%clk 0:00:26]} 23. Rfc3 {[%clk 0:01:32]}  Bxe2 {[%clk 0:00:26]} 24. Qxe2 {[%clk 0:01:32]}  Ne6 {[%clk 0:00:18]} 25. Rc8+ {[%clk 0:01:26]}  Rxc8 {[%clk 0:00:19]} 26. Rxc8+ {[%clk 0:01:26]}  Bf8 {[%clk 0:00:19]} 27. Qc4 {[%clk 0:01:13]}  Kg7 {[%clk 0:00:18]} 28. f5 {[%clk 0:01:12]}  gxf5 {[%clk 0:00:16]} 29. Nxf5+ {[%clk 0:01:12]} 1-0


[Site "https://www.chess.com"]

[Event "Titled Tuesday Blitz August 31 2021"]
[White "Harutjunyan, Gevorg"]
[Black "Urjubdshzirov, Erdni"]
[WhiteFideId "13300873"]
[BlackFideId "4186451"]
[WhiteElo "2498"]
[BlackElo "2391"]
[Result "0-1"]
[Round "01"]
[TimeControl "180+1"]
[Date "2021.08.31"]
[WhiteClock "0:00:07"]
[BlackClock "0:00:09"]

1. e4 {[%clk 0:02:54]}  c5 {[%clk 0:02:58]} 2. Nc3 {[%clk 0:02:54]}  e6 {[%clk 0:02:59]} 3. Nf3 {[%clk 0:02:54]}  Nc6 {[%clk 0:02:57]} 4. d4 {[%clk 0:02:52]}  cxd4 {[%clk 0:02:56]} 5. Nxd4 {[%clk 0:02:53]}  Qc7 {[%clk 0:02:56]} 6. Be3 {[%clk 0:02:52]}  a6 {[%clk 0:02:53]} 7. Qf3 {[%clk 0:02:53]}  b5 {[%clk 0:02:52]} 8. Nxc6 {[%clk 0:02:49]}  Qxc6 {[%clk 0:02:51]} 9. Bd3 {[%clk 0:02:48]}  Bb7 {[%clk 0:02:50]} 10. O-O-O {[%clk 0:02:27]}  Nf6 {[%clk 0:02:43]} 11. Bd4 {[%clk 0:02:22]}  Be7 {[%clk 0:02:33]} 12. Rhe1 {[%clk 0:02:20]}  d6 {[%clk 0:02:27]} 13. Nd5 {[%clk 0:02:03]}  Nxd5 {[%clk 0:01:51]} 14. exd5 {[%clk 0:02:01]}  Qxd5 {[%clk 0:01:48]} 15. Be4 {[%clk 0:01:46]}  Qg5+ {[%clk 0:01:43]} 16. Be3 {[%clk 0:01:47]}  Bxe4 {[%clk 0:01:40]} 17. Qxe4 {[%clk 0:01:46]}  d5 {[%clk 0:01:40]} 18. Qf3 {[%clk 0:01:14]}  Qf6 {[%clk 0:01:32]} 19. Qg3 {[%clk 0:01:11]}  O-O {[%clk 0:01:30]} 20. h4 {[%clk 0:01:05]}  Qg6 {[%clk 0:01:16]} 21. Qh3 {[%clk 0:01:04]}  h5 {[%clk 0:01:09]} 22. f3 {[%clk 0:01:04]}  Rac8 {[%clk 0:01:04]} 23. Re2 {[%clk 0:01:04]}  Rc4 {[%clk 0:01:02]} 24. b3 {[%clk 0:00:52]}  Ba3+ {[%clk 0:01:00]} 25. Kb1 {[%clk 0:00:51]}  Qf6 {[%clk 0:00:51]} 26. Bc1 {[%clk 0:00:41]}  Bxc1 {[%clk 0:00:50]} 27. Rxc1 {[%clk 0:00:41]}  Rxh4 {[%clk 0:00:50]} 28. Qg3 {[%clk 0:00:41]}  Qf4 {[%clk 0:00:48]} 29. Qf2 {[%clk 0:00:40]}  Rh2 {[%clk 0:00:45]} 30. Qb6 {[%clk 0:00:39]}  h4 {[%clk 0:00:35]} 31. Qxa6 {[%clk 0:00:32]}  h3 {[%clk 0:00:34]} 32. Qxb5 {[%clk 0:00:31]}  Rxg2 {[%clk 0:00:29]} 33. Rxg2 {[%clk 0:00:31]}  hxg2 {[%clk 0:00:28]} 34. Qc5 {[%clk 0:00:28]}  Qxf3 {[%clk 0:00:26]} 35. a4 {[%clk 0:00:28]}  e5 {[%clk 0:00:24]} 36. a5 {[%clk 0:00:27]}  d4 {[%clk 0:00:23]} 37. Qxe5 {[%clk 0:00:27]}  d3 {[%clk 0:00:17]} 38. a6 {[%clk 0:00:24]}  dxc2+ {[%clk 0:00:17]} 39. Kb2 {[%clk 0:00:24]}  Ra8 {[%clk 0:00:13]} 40. Rxc2 {[%clk 0:00:18]}  g1=Q {[%clk 0:00:11]} 41. a7 {[%clk 0:00:13]}  Qb7 {[%clk 0:00:10]} 42. Qd4 {[%clk 0:00:07]}  Qxd4+ {[%clk 0:00:09]} 0-1


[Site "https://www.chess.com"]

[Event "Titled Tuesday Blitz August 31 2021"]
[White "Heinemann, Josefine"]
[Black "Tristan, Leonardo"]
[WhiteFideId "12900460"]
[BlackFideId "113816"]
[WhiteElo "2300"]
[BlackElo "2404"]
[Result "0-1"]
[Round "01"]
[TimeControl "180+1"]
[Date "2021.08.31"]
[WhiteClock "0:00:17"]
[BlackClock "0:00:51"]

1. e4 {[%clk 0:03:00]}  d5 {[%clk 0:02:59]} 2. exd5 {[%clk 0:03:00]}  Qxd5 {[%clk 0:03:00]} 3. Nc3 {[%clk 0:03:00]}  Qa5 {[%clk 0:03:00]} 4. d4 {[%clk 0:02:59]}  Nf6 {[%clk 0:02:59]} 5. Bc4 {[%clk 0:02:59]}  Bg4 {[%clk 0:02:59]} 6. Ne2 {[%clk 0:02:52]}  Nc6 {[%clk 0:02:58]} 7. f3 {[%clk 0:02:42]}  Bf5 {[%clk 0:02:58]} 8. Bd2 {[%clk 0:02:42]}  O-O-O {[%clk 0:02:58]} 9. Nd5 {[%clk 0:02:16]}  Qa4 {[%clk 0:02:57]} 10. Bb3 {[%clk 0:02:13]}  Qa6 {[%clk 0:02:57]} 11. Nxf6 {[%clk 0:02:05]}  exf6 {[%clk 0:02:57]} 12. d5 {[%clk 0:02:04]}  Nb4 {[%clk 0:02:41]} 13. Bxb4 {[%clk 0:01:44]}  Bxb4+ {[%clk 0:02:42]} 14. c3 {[%clk 0:01:42]}  Rhe8 {[%clk 0:02:16]} 15. Kf2 {[%clk 0:00:46]}  Rxe2+ {[%clk 0:01:49]} 16. Qxe2 {[%clk 0:00:46]}  Bc5+ {[%clk 0:01:50]} 17. Ke1 {[%clk 0:00:44]}  Bd3 {[%clk 0:01:48]} 18. Qd2 {[%clk 0:00:37]}  Re8+ {[%clk 0:01:44]} 19. Kd1 {[%clk 0:00:36]}  Re2 {[%clk 0:01:07]} 20. Qf4 {[%clk 0:00:26]}  Be3 {[%clk 0:00:50]} 21. Qg4+ {[%clk 0:00:25]}  f5 {[%clk 0:00:51]} 22. Qxg7 {[%clk 0:00:23]}  Bc2+ {[%clk 0:00:51]} 23. Bxc2 {[%clk 0:00:20]}  Rd2+ {[%clk 0:00:51]} 24. Kc1 {[%clk 0:00:17]}  Rxg2+ {[%clk 0:00:51]} 0-1


[Site "https://www.chess.com"]

[Event "Titled Tuesday Blitz August 31 2021"]
[White "Ibrahimli, Murad"]
[Black "Ogloblin, Nikolay"]
[WhiteFideId "13410229"]
[BlackFideId "4139658"]
[WhiteElo "2109"]
[BlackElo "2265"]
[Result "1-0"]
[Round "01"]
[TimeControl "180+1"]
[Date "2021.08.31"]
[WhiteClock "0:00:21"]
[BlackClock "0:01:13"]

1. c4 {[%clk 0:02:58]}  c6 {[%clk 0:02:58]} 2. Nc3 {[%clk 0:02:58]}  c5 {[%clk 0:02:59]} 3. Nf3 {[%clk 0:02:57]}  Nf6 {[%clk 0:03:00]} 4. g3 {[%clk 0:02:56]}  b6 {[%clk 0:02:53]} 5. Bg2 {[%clk 0:02:53]}  Bb7 {[%clk 0:02:54]} 6. O-O {[%clk 0:02:53]}  e6 {[%clk 0:02:54]} 7. d4 {[%clk 0:02:48]}  cxd4 {[%clk 0:02:53]} 8. Nxd4 {[%clk 0:02:48]}  Bxg2 {[%clk 0:02:52]} 9. Kxg2 {[%clk 0:02:49]}  Qc7 {[%clk 0:02:53]} 10. Qd3 {[%clk 0:02:47]}  Qb7+ {[%clk 0:02:50]} 11. e4 {[%clk 0:02:45]}  d6 {[%clk 0:02:49]} 12. f3 {[%clk 0:02:44]}  a6 {[%clk 0:02:49]} 13. Be3 {[%clk 0:02:39]}  Nbd7 {[%clk 0:02:49]} 14. Qe2 {[%clk 0:02:34]}  Be7 {[%clk 0:02:48]} 15. b3 {[%clk 0:02:30]}  O-O {[%clk 0:02:36]} 16. Bf2 {[%clk 0:02:30]}  Rfe8 {[%clk 0:02:35]} 17. Rac1 {[%clk 0:02:27]}  Rac8 {[%clk 0:02:35]} 18. Rfe1 {[%clk 0:02:25]}  Bf8 {[%clk 0:02:35]} 19. Kg1 {[%clk 0:01:48]}  h6 {[%clk 0:02:35]} 20. Qf1 {[%clk 0:01:45]}  Qb8 {[%clk 0:02:30]} 21. Kh1 {[%clk 0:01:43]}  Red8 {[%clk 0:02:18]} 22. g4 {[%clk 0:01:28]}  Qb7 {[%clk 0:02:17]} 23. Bg3 {[%clk 0:01:27]}  Ne5 {[%clk 0:02:14]} 24. Qe2 {[%clk 0:01:23]}  Nfd7 {[%clk 0:02:08]} 25. f4 {[%clk 0:01:20]}  Nc6 {[%clk 0:02:08]} 26. Nxc6 {[%clk 0:01:19]}  Qxc6 {[%clk 0:02:07]} 27. f5 {[%clk 0:01:06]}  Nc5 {[%clk 0:02:00]} 28. Rcd1 {[%clk 0:00:54]}  Nd7 {[%clk 0:01:40]} 29. fxe6 {[%clk 0:00:48]}  fxe6 {[%clk 0:01:39]} 30. g5 {[%clk 0:00:48]}  hxg5 {[%clk 0:01:37]} 31. Qg4 {[%clk 0:00:48]}  Re8 {[%clk 0:01:35]} 32. Qxg5 {[%clk 0:00:37]}  Nf6 {[%clk 0:01:32]} 33. Qg6 {[%clk 0:00:27]}  Be7 {[%clk 0:01:29]} 34. Bh4 {[%clk 0:00:26]}  Rf8 {[%clk 0:01:29]} 35. Rg1 {[%clk 0:00:25]}  Rf7 {[%clk 0:01:28]} 36. Rdf1 {[%clk 0:00:24]}  Rc7 {[%clk 0:01:20]} 37. Bxf6 {[%clk 0:00:21]}  Bxf6 {[%clk 0:01:20]} 38. Rxf6 {[%clk 0:00:22]}  Rxf6 {[%clk 0:01:20]} 39. Qxf6 {[%clk 0:00:22]}  Rf7 {[%clk 0:01:18]} 40. Qxe6 {[%clk 0:00:20]}  b5 {[%clk 0:01:17]} 41. Nd5 {[%clk 0:00:20]}  Qd7 {[%clk 0:01:14]} 42. Qxd7 {[%clk 0:00:20]}  Rxd7 {[%clk 0:01:13]} 43. Nf6+ {[%clk 0:00:21]} 1-0


[Site "https://www.chess.com"]